Cogmind - Beta 12 X2 @@@ ROGUE MODE // 2022.09.05 @ 14:06:43 Player: btmk16 Result: Destroyed by S-27 Virus with Autogun Performance ------------- Evolutions (3) 1500 Regions Visited (8) 1600 Robots Destroyed (108) 540 Value Destroyed (3132) 3132 Prototype IDs (9) 180 Alien Tech Used (0) 0 Bonus (22) 22 TOTAL SCORE: 6974 Bonus ------- High Alert Combat Kills 22 Cogmind --------- Core Integrity 0/700 Matter 300/300 Energy 87/100 System Corruption 19% Temperature Cool (0) Movement Rolling (100) Location -7/Lower Caves Parts ------- > --- POWER (1) -------- (None) > --- PROPULSION (4) --- Armored Huge Wheel > --- UTILITY (5) ------ Scrap Engine Improved Power Shielding Hardlight Generator > --- WEAPON (3) ------- (None) > --- INVENTORY (5) ---- Wheel Large Storage Unit Improved Shield Generator High-powered Tractor Beam Long-range Tractor Beam Peak State ------------ > --- POWER ------------ Nuclear-Deuterium Core > --- PROPULSION ------- Treaded VSS Exoskeleton Wheel > --- UTILITY ---------- Armored Scrap Engine Improved Cooling System Improved Melee Analysis Suite Long-range Tractor Beam > --- WEAPON ----------- Thermic Ion Construct/G Scythe > --- INVENTORY -------- Wheel Improved Shield Generator High-powered Tractor Beam Scythe [Rating: 53] Favorites ----------- Power Improved Ion Engine Engine Improved Ion Engine Power Core Nuclear-Deuterium Core Propulsion Improved Treads Treads Improved Treads Wheel Wheel Utility Armored Scrap Engine Device Armored Scrap Engine Storage Small Storage Unit Processor Improved Melee Analysis Suite Protection Hardened Medium Armor Plating Weapon Improved Assault Rifle Energy Gun Thermic Ion Construct/G Ballistic Gun Improved Assault Rifle Ballistic Cannon Flak Kinetic Assault Construct/C Launcher Grenade Launcher Impact Weapon Heavy Hammer Slashing Weapon Scythe Build | -11 -10 -10 -9 -8 -7 -7 -7 -7 ------- Run | Scr Mat Min Mat Mat Fac Was Fac Low Slots Evolved 6 | . . . 2 2 2 . . . Power . | . . . . . . . . . Propulsion 2 | . . . 1 . 1 . . . Utility 3 | . . . 1 1 1 . . . Weapon 1 | . . . . 1 . . . . Parts Attached 81 | 7 15 . 7 20 13 . 16 3 Power 10 | 1 4 . 1 1 1 . 2 . Engine 10 | 1 4 . 1 1 1 . 2 . Core . | . . . . . . . . . Reactor . | . . . . . . . . . Propulsion 25 | 2 6 . 1 6 5 . 4 1 Treads 21 | 2 6 . 1 6 3 . 2 1 Leg . | . . . . . . . . . Wheel 4 | . . . . . 2 . 2 . Hover . | . . . . . . . . . Flight . | . . . . . . . . . Utility 25 | 2 1 . 3 7 4 . 6 2 Device 11 | 1 1 . 1 1 2 . 4 1 Storage 4 | 1 . . . 1 1 . 1 . Processor 1 | . . . . . . . 1 . Hackware . | . . . . . . . . . Protection 9 | . . . 2 5 1 . . 1 Artifact . | . . . . . . . . . Weapon 21 | 2 4 . 2 6 3 . 4 . Energy Gun . | . . . . . . . . . Energy Cannon . | . . . . . . . . . Ballistic Gun 14 | 2 4 . 2 4 2 . . . Ballistic Cannon 1 | . . . . . 1 . . . Launcher 2 | . . . . 2 . . . . Special Weapon . | . . . . . . . . . Impact Weapon 1 | . . . . . . . 1 . Slashing Weapon 3 | . . . . . . . 3 . Piercing Weapon . | . . . . . . . . . Special Melee Weapon . | . . . . . . . . . Unidentified Prototypes 1 | . . . 1 . . . . . Parts Lost 32 | . 1 . . 4 5 3 15 4 Power 5 | . 1 . . . . . 4 . Propulsion 12 | . . . . 3 2 1 5 1 Utility 6 | . . . . 1 1 . 2 2 Weapon 9 | . . . . . 2 2 4 1 Highest Loss Streak 4 | . 1 . . 1 2 3 4 4 To Critical Strikes 2 | . . . . . . . . 2 Average Slot Usage (%) 74 | . 96 100 100 98 72 48 52 44 Engine 6 | . 13 14 11 9 7 4 2 . Treads 15 | . 27 28 33 26 9 . 7 . Wheel 2 | . . . . . 7 11 1 7 Device 14 | . 13 14 13 15 12 11 14 14 Storage 6 | . 14 14 11 9 7 4 2 . Processor 1 | . . . . . . . 4 6 Protection 4 | . . . 8 10 8 4 . 6 Energy Gun 1 | . . . . . 3 3 2 . Ballistic Gun 12 | . 26 28 22 26 10 4 . . Slashing Weapon 3 | . . . . . . . 9 7 Naked Turns . | . . . . . . . . . Heaviest Build 69 | 15 19 19 22 55 69 69 43 10 Greatest Support 79 | 40 46 46 69 69 73 20 79 28 Greatest Overweight (x) 8 | . 3 . . . 4 3 8 . Average Overweight (x) . | . . . . . 1 . . . Largest Inventory Capacity 20 | 8 8 8 8 15 20 20 15 5 Average Capacity 10 | 6 8 8 8 10 16 13 8 5 Most Carried 16 | 8 8 8 8 15 16 16 5 5 Average Carried 8 | 4 7 7 7 8 14 11 4 5 Final Capacity 20 | 8 8 8 8 15 20 5 5 5 Final Carried 16 | 8 7 8 8 15 16 5 5 5 Class Distribution -------------------- 60% | Mutant 15% | Construct 13% | Tank 10% | Scavenger-Tank Dominant Class ---------------- Mutant | -10/Materials Mutant | -10/Mines Mutant | -9/Materials Scavenger-Tank | -8/Materials Mutant | -7/Factory Mutant | -7/Waste Mutant | -7/Factory Mutant | -7/Lower Caves Resources | -11 -10 -10 -9 -8 -7 -7 -7 -7 ----------- Run | Scr Mat Min Mat Mat Fac Was Fac Low Matter Collected 2926 | 209 390 72 264 850 619 141 306 75 Remotely 26 | . . . . . . . 26 . Salvage Created 4690 | 66 288 217 487 1291 803 534 979 25 Parts 264 | 5 21 7 28 87 49 8 58 1 Haulers Intercepted 4 | . . . 2 1 1 . . . Recyclers Shooed 3 | . . . . . 2 . 1 . Parts Field Recycled . | . . . . . . . . . Retrieved Matter . | . . . . . . . . . Parts Self-Destructed . | . . . . . . . . . Prevented . | . . . . . . . . . Kills | -11 -10 -10 -9 -8 -7 -7 -7 -7 ------- Run | Scr Mat Min Mat Mat Fac Was Fac Low Combat Hostiles Destroyed 78 | . 7 1 7 24 17 2 19 1 Melee 16 | . . . . . . . 15 1 Guns 55 | . 7 1 7 24 13 2 1 . Cannons 6 | . . . . . 4 . 2 . Classes Destroyed 14 | 2 3 . 3 3 2 1 . . Worker 8 | . . . . 3 2 . 3 . Builder 4 | . . . . 2 . . 2 . Tunneler 2 | 1 . . . . 1 . . . Hauler 4 | . . . 2 1 1 . . . Recycler 9 | 1 . 1 . 2 3 . 2 . Watcher 3 | . 2 . 1 . . . . . Swarmer 28 | . 2 . . 6 8 . 11 1 Grunt 23 | . 5 1 2 9 4 . 2 . Brawler 2 | . . . 1 1 . . . . Duelist 1 | . . . . 1 . . . . Sentry 15 | . . . 4 7 1 . 3 . Hunter 2 | . . . . . 2 . . . Programmer 5 | . . . . . 2 . 3 . Compactor 2 | . . . . . . 2 . . Best Kill Streak 6 | 2 4 1 5 6 5 1 5 1 Combat Bots Only 5 | . 3 1 4 5 4 1 5 1 Max Kills in Single Turn 2 | 1 2 1 1 2 2 1 1 1 Gunslinging 1 | . 1 . . 1 . . . . Exploded . | . . . . . . . . . Melee 1 | . . . . . . . 1 1 Uniques/NPCs Destroyed . | . . . . . . . . . Combat | -11 -10 -10 -9 -8 -7 -7 -7 -7 -------- Run | Scr Mat Min Mat Mat Fac Was Fac Low Damage Taken 6086 | . 249 82 315 664 1443 159 2942 232 Core 891 | . 29 33 38 87 147 48 466 43 Absorbed by Shields 179 | . . . . . . . 175 4 Core Remaining (%) 87 | 100 . 75 90 84 . . . . Volleys Fired 223 | 6 21 7 28 60 56 12 33 . Largest 3 | 2 2 2 2 3 3 3 1 . Hottest 200 | 40 46 46 46 69 119 179 200 . Shots Fired 493 | 12 41 14 56 176 128 33 33 . Gun 440 | 12 41 14 56 174 98 21 24 . Cannon 51 | . . . . . 30 12 9 . Launcher 2 | . . . . 2 . . . . Special . | . . . . . . . . . Kinetic 451 | 12 41 14 56 174 122 23 9 . Thermal 29 | . . . . . 6 10 13 . Explosive 2 | . . . . 2 . . . . Electromagnetic 11 | . . . . . . . 11 . Robot Hit Streak 19 | 3 6 4 12 19 15 6 6 . Robot Miss Streak 6 | 1 6 2 3 3 4 5 4 . Penetration Max 1 | . . . . . 1 . . . Secondary Targets 7 | . 1 . . 6 . . . . Max Gunslinging Chain 1 | . 1 . . 1 . . . . Shots Hit Robots 393 | 8 23 9 42 113 81 29 86 2 Core Hits 172 | 3 11 6 17 60 42 7 25 1 Critical Kills 1 | . . . 1 . . . . . Critical Parts Destroyed 1 | . . . . . . 1 . . Critical Strikes 8 | . . . 1 . 2 1 4 . Destroy 2 | . . . 1 . . 1 . . Blast 3 | . . . . . 2 . 1 . Sever 3 | . . . . . . . 3 . Melee Attacks 108 | . . . . . . . 104 4 Impact . | . . . . . . . . . Slashing 108 | . . . . . . . 104 4 Piercing . | . . . . . . . . . Sneak Attacks 9 | . . . . . . . 9 . Combat Hostiles . | . . . . . . . . . Follow-up Attacks 5 | . . . . . . . 5 . Damage Inflicted 8616 | 118 364 133 640 1833 1677 890 2897 64 Guns 5223 | 118 364 131 626 1827 1151 671 335 . Cannons 837 | . . . . . 520 219 98 . Explosions . | . . . . . . . . . Melee 2528 | . . . . . . . 2464 64 Ramming 28 | . . 2 14 6 6 . . . Kinetic 5103 | 118 364 131 626 1827 1476 412 149 . Thermal 841 | . . . . . 195 478 168 . Explosive . | . . . . . . . . . Electromagnetic 116 | . . . . . . . 116 . Impact . | . . . . . . . . . Slashing 2528 | . . . . . . . 2464 64 Piercing . | . . . . . . . . . Highest Corruption 19 | . . . . . 2 16 19 19 Average Corruption 16 | . . . . . 1 10 17 19 Corruption Purged . | . . . . . . . . . Corruption Blocked . | . . . . . . . . . Effects 118 | . . . . . 2 5 94 17 Message Errors 34 | . . . . . . 2 27 5 Matter Fused 27 | . . . . . 1 2 20 4 Heat Flow Errors 20 | . . . . . . 1 17 2 Energy Discharges 11 | . . . . . . . 8 3 Data Loss (minor) 17 | . . . . . 1 . 15 1 Data Loss (major) 3 | . . . . . . . 2 1 Alerts 3 | . . . . . . . 2 1 Misdirections 3 | . . . . . . . 3 . Overload Shots 13 | . . . . . 3 10 . . Effects 1 | . . . . . . 1 . . Energy Bleed 1 | . . . . . . 1 . . Overflow Damage 254 | . . . . . 12 . 242 . Projectiles 12 | . . . . . 12 . . . Explosions . | . . . . . . . . . Melee 242 | . . . . . . . 242 . Knockbacks 6 | . . . . . 6 . . . Impact . | . . . . . . . . . Kinetic 5 | . . . . . 5 . . . Secondary 1 | . . . . . 1 . . . Self-Inflicted Damage . | . . . . . . . . . Shots . | . . . . . . . . . Rammed 8 | . . 1 3 2 2 . . . Targets Rammed 9 | . . 1 3 3 2 . . . Kicked . | . . . . . . . . . Crushed 1 | . . . . 1 . . . . Highest Temperature 418 | . 34 31 31 21 418 216 410 197 Average Temperature 79 | . 10 14 12 9 152 50 115 99 Received Heat Transfer 1281 | . 66 45 60 342 396 . 372 . Effects 4 | . . . . . 3 . 1 . Shutdowns 2 | . . . . . 1 . 1 . Interference 2 | . . . . . 2 . . . Siege Activations . | . . . . . . . . . Robots Corrupted 1 | . . . . . . . 1 . Combat Hostiles 1 | . . . . . . . 1 . Parts Fried . | . . . . . . . . . Impact Corruptions . | . . . . . . . . . Robots Melted . | . . . . . . . . . Combat Hostiles . | . . . . . . . . . Parts Melted . | . . . . . . . . . Heat Transferred 761 | . . . . . 211 450 100 . Parts Sabotaged . | . . . . . . . . . Parts Stolen . | . . . . . . . . . Parts Stripped . | . . . . . . . . . Power Chain Reactions . | . . . . . . . . . Missiles Intercepted . | . . . . . . . . . Alert | -11 -10 -10 -9 -8 -7 -7 -7 -7 ------- Run | Scr Mat Min Mat Mat Fac Was Fac Low Peak Influence 449 | 10 151 80 274 449 301 18 347 . Initial 203 | . 6 35 . 31 203 17 10 . Average 123 | 2 51 54 109 172 109 13 151 . Maximum Alert Level 2 | . . . 1 2 1 . 1 . Low Security (%) 69 | 100 100 100 82 62 75 100 49 . Level 1 29 | . . . 17 29 24 . 50 . Level 2 1 | . . . . 8 . . . . Level 3 . | . . . . . . . . . Level 4 . | . . . . . . . . . Level 5 . | . . . . . . . . . High Security . | . . . . . . . . . Max Security . | . . . . . . . . . Squads Dispatched 13 | . 1 . . 2 3 . 7 . Investigation 1 | . . . . . . . 1 . Extermination 5 | . . . . . 2 . 3 . Reinforcement 6 | . 1 . . 2 1 . 2 . Assault . | . . . . . . . . . Garrison 1 | . . . . . . . 1 . Intercept . | . . . . . . . . . Searches Triggered . | . . . . . . . . . Construction Impeded . | . . . . . . . . . Haulers Reinforced . | . . . . . . . . . Active Scanning Responses . | . . . . . . . . . Cargo Convoy Interrupts . | . . . . . . . . . Stealth | -11 -10 -10 -9 -8 -7 -7 -7 -7 --------- Run | Scr Mat Min Mat Mat Fac Was Fac Low Distress Signals 16 | . 2 . 2 8 1 . 3 . Communications Jammed . | . . . . . . . . . Distress Signals . | . . . . . . . . . Times Spotted 131 | . 13 2 12 38 26 6 31 3 Peak Tracking Total 7 | . 3 2 5 7 4 4 6 3 Tactical Retreats 5 | . 1 . . . 1 . 3 . Traps | -11 -10 -10 -9 -8 -7 -7 -7 -7 ------- Run | Scr Mat Min Mat Mat Fac Was Fac Low Traps Triggered 9 | . 5 . . . 3 . 1 . Indirectly . | . . . . . . . . . Trap Hack Attempts . | . . . . . . . . . Triggered . | . . . . . . . . . Disarmed . | . . . . . . . . . Reprogrammed . | . . . . . . . . . Reused . | . . . . . . . . . Traps Extracted . | . . . . . . . . . Installed . | . . . . . . . . . Triggered . | . . . . . . . . . Machines | -11 -10 -10 -9 -8 -7 -7 -7 -7 ---------- Run | Scr Mat Min Mat Mat Fac Was Fac Low Machines Disabled 5 | . . 1 . 2 1 . 1 . Max in Single Turn 1 | . . 1 . 1 1 . 1 . Garrison Access 1 | . . . . . 1 . . . Machines Sabotaged . | . . . . . . . . . Overloaded Fab Kills . | . . . . . . . . . Hacking | -11 -10 -10 -9 -8 -7 -7 -7 -7 --------- Run | Scr Mat Min Mat Mat Fac Was Fac Low Machines Accessed 9 | . . . 1 2 4 . 2 . Terminals 8 | . . . 1 2 3 . 2 . Fabricators . | . . . . . . . . . Repair Stations . | . . . . . . . . . Recycling Units . | . . . . . . . . . Scanalyzers . | . . . . . . . . . Garrison Access 1 | . . . . . 1 . . . Total Hacks 26 | . . . 2 3 16 . 5 . Successful 14 | . . . 1 1 11 . 1 . Failed 12 | . . . 1 2 5 . 4 . Catastrophic 2 | . . . . 1 1 . . . Database Lockouts . | . . . . . . . . . Manual 2 | . . . 1 1 . . . . Terminals 24 | . . . 2 3 14 . 5 . Fabricators . | . . . . . . . . . Repair Stations . | . . . . . . . . . Recycling Units . | . . . . . . . . . Scanalyzers . | . . . . . . . . . Garrison Access 2 | . . . . . 2 . . . Terminal Hacks 13 | . . . 1 1 10 . 1 . Part Schematic 1 | . . . . . 1 . . . Prototype ID Bank 1 | . . . . . 1 . . . Branch Access Points 1 | . . . 1 . . . . . Emergency Access Points 1 | . . . . . 1 . . . Alert Level 3 | . . . . 1 1 . 1 . Unreport Threat 4 | . . . . . 4 . . . Locate Traps 1 | . . . . . 1 . . . Hauler Manifests 1 | . . . . . 1 . . . Fabricator Hacks . | . . . . . . . . . Repair Station Hacks . | . . . . . . . . . Recycling Unit Hacks . | . . . . . . . . . Scanalyzer . | . . . . . . . . . Garrison Access Hacks 1 | . . . . . 1 . . . Seal Access 1 | . . . . . 1 . . . Unauthorized Hacks . | . . . . . . . . . Terminals . | . . . . . . . . . Fabricators . | . . . . . . . . . Repair Stations . | . . . . . . . . . Recycling Units . | . . . . . . . . . Scanalyzers . | . . . . . . . . . Garrison Access . | . . . . . . . . . Data Cores Recovered . | . . . . . . . . . Used . | . . . . . . . . . Hacking Detections 7 | . . . 1 1 3 . 2 . Full Trace Events . | . . . . . . . . . Feedback Events . | . . . . . . . . . Feedback Blocked . | . . . . . . . . . Robot Schematics Acquired . | . . . . . . . . . Robots Built . | . . . . . . . . . Authchips . | . . . . . . . . . Time . | . . . . . . . . . Total Robot Build Rating . | . . . . . . . . . Part Schematics Acquired 1 | . . . . . 1 . . . Parts Built . | . . . . . . . . . Authchips . | . . . . . . . . . Time . | . . . . . . . . . Total Part Build Rating . | . . . . . . . . . Parts Repaired . | . . . . . . . . . Time . | . . . . . . . . . Parts Recycled . | . . . . . . . . . Recycled Matter . | . . . . . . . . . Retrieved Matter . | . . . . . . . . . Retrieved Components . | . . . . . . . . . Parts Scanalyzed . | . . . . . . . . . Part Schematics Acquired . | . . . . . . . . . Parts Damaged . | . . . . . . . . . Bothacking | -11 -10 -10 -9 -8 -7 -7 -7 -7 ------------ Run | Scr Mat Min Mat Mat Fac Was Fac Low Used RIF Installer . | . . . . . . . . . Robots Hacked . | . . . . . . . . . Non-combat . | . . . . . . . . . Combat . | . . . . . . . . . Robot Hacks Applied . | . . . . . . . . . Relay Couplers Released . | . . . . . . . . . Fabnet Peak Effective % . | . . . . . . . . . Robots Rewired . | . . . . . . . . . Allies Hacked . | . . . . . . . . . Hacks Repelled . | . . . . . . . . . Allies | -11 -10 -10 -9 -8 -7 -7 -7 -7 -------- Run | Scr Mat Min Mat Mat Fac Was Fac Low Total Allies . | . . . . . . . . . Largest Group . | . . . . . . . . . Highest-Rated Group . | . . . . . . . . . Highest-Rated Ally . | . . . . . . . . . Total Orders . | . . . . . . . . . Ally Attacks . | . . . . . . . . . Total Damage . | . . . . . . . . . Kills . | . . . . . . . . . Allies Corrupted . | . . . . . . . . . Allies Melted . | . . . . . . . . . Intel | -11 -10 -10 -9 -8 -7 -7 -7 -7 ------- Run | Scr Mat Min Mat Mat Fac Was Fac Low Robot Analysis Total . | . . . . . . . . . Derelict Logs Recovered 3 | . . 1 . . . . . 2 Drone Launches . | . . . . . . . . . Drone Recoveries . | . . . . . . . . . Exploration | -11 -10 -10 -9 -8 -7 -7 -7 -7 ------------- Run | Scr Mat Min Mat Mat Fac Was Fac Low Turns Passed 6936 | 110 466 479 463 1182 1525 140 2215 356 Spaces Moved 3507 | 51 239 286 220 584 912 130 925 160 Core 173 | 6 1 . . . . 99 67 . Treads 2303 | 45 238 286 220 584 320 . 610 . Legs . | . . . . . . . . . Wheels 1031 | . . . . . 592 31 248 160 Hover . | . . . . . . . . . Flight . | . . . . . . . . . Fastest Speed 50 | 50 160 160 160 155 110 50 50 100 Average Speed 143 | 147 160 160 160 155 137 70 144 100 Slowest Speed 450 | 160 200 160 160 160 240 150 450 100 Overloaded Moves . | . . . . . . . . . Propulsion Burnouts . | . . . . . . . . . Robots Hopped . | . . . . . . . . . Cave-ins Triggered . | . . . . . . . . . Exploration Rate (%) 38 | 5 46 58 29 57 20 81 20 28 Regions Visited 8 Branch Regions 2 Pre-discovered Areas . | . . . . . . . . . Known Exits Taken . | . . . . . . . . . Unknown Exits Taken 6 | 1 1 1 1 1 . . 1 . Scrap Searched 1 | . . . . . . . . 1 Spaces Dug 13 | . . . . . . . 13 . Terrain Destroyed 33 | . . . . 10 4 1 18 . Melee 13 | . . . . . . . 13 . Projectile 10 | . . . . . 4 1 5 . AOE 10 | . . . . 10 . . . . Terrain Rammed . | . . . . . . . . . Walls Destroyed . | . . . . . . . . . Machines Disabled . | . . . . . . . . . Actions | -11 -10 -10 -9 -8 -7 -7 -7 -7 --------- Run | Scr Mat Min Mat Mat Fac Was Fac Low Total 4884 | 71 294 296 284 743 1075 152 1620 349 Wait 870 | . 3 . 19 51 63 9 543 182 Move 3500 | 50 238 285 219 583 912 129 924 160 Hop . | . . . . . . . . . Pick Up 42 | 8 6 2 2 14 10 . . . Fast Attach 39 | 7 9 . 2 1 5 . 12 3 Attach 15 | . 1 . 2 5 4 . 3 . Detach 10 | . . . 1 . 3 1 5 . Swap 27 | . 5 . 3 14 4 . 1 . Drop 49 | . 11 1 5 12 16 1 3 . Fire 223 | 6 21 7 28 60 56 12 33 . Melee 100 | . . . . . . . 96 4 Ram . | . . . . . . . . . Kick . | . . . . . . . . . Crush 9 | . . 1 3 3 2 . . . Escape Stasis . | . . . . . . . . . Rewire . | . . . . . . . . . Trap . | . . . . . . . . . Miscellaneous . | . . . . . . . . . Route ------- -11/Scrapyard -10/Materials -10/Mines (discovered 2 exits: *Mat x2) -9/Materials (discovered 4 exits: *Mat / Min x2 / Sto) -8/Materials -7/Factory (discovered 2 exits: [*Fac] / [*Low]) -7/Waste -7/Factory -7/Lower Caves (discovered 1 exit: Low) History --------- Turn | Location | Event 7 | -11/Scrapyard | Discovered new exit (range 15) 111 | -11/Scrapyard | Entered Materials 316 | -10/Materials | Build established: Mutant 541 | -10/Materials | Discovered new exit (range 9) 577 | -10/Materials | Entered Mines 892 | -10/Mines | Discovered new exit (range 14) 971 | -10/Mines | Learned Materials garrison access intel 1017 | -10/Mines | Discovered new exit (range 12) 1056 | -10/Mines | Entered Materials 1056 | -9/Materials | Evolved 2 slots: Propulsion x1, Utility x1 1331 | -9/Materials | Identified exit to Mines 1331 | -9/Materials | Identified exit to Storage 1478 | -9/Materials | Discovered new exit (range 15) 1519 | -9/Materials | Entered another Materials area 1519 | -8/Materials | Evolved 2 slots: Utility x1, Weapon x1 1520 | -8/Materials | Loaded intel: 1 garrison access location 2397 | -8/Materials | Build established: Scavenger-Tank 2499 | -8/Materials | Found Powered Armor 2502 | -8/Materials | Found Powered Armor 2505 | -8/Materials | Found Powered Armor 2511 | -8/Materials | Found Powered Armor 2678 | -8/Materials | Discovered new exit (range 16) 2701 | -8/Materials | Entered Factory 2701 | -7/Factory | Evolved 2 slots: Propulsion x1, Utility x1 2705 | -7/Factory | Found Scrap Engine 3176 | -7/Factory | Build established: Mutant 3583 | -7/Factory | Discovered new exit (range 5) 3713 | -7/Factory | Discovered new exit (range 4) 4226 | -7/Factory | Sucked down chute 4226 | -7/Factory | Entered Waste 4241 | -7/Waste | EMP discharged 4241 | -7/Waste | System corruption reached 10% 4256 | -7/Waste | Spotted C-40 Crusher 4265 | -7/Waste | Destroyed C-40 Crusher 4270 | -7/Waste | Spotted C-40 Crusher 4281 | -7/Waste | Spotted C-40 Crusher 4286 | -7/Waste | Spotted C-40 Crusher 4292 | -7/Waste | Destroyed C-40 Crusher 4297 | -7/Waste | Crushed by Compactor (2 parts destroyed) 4300 | -7/Waste | Crushed by Compactor (1 part destroyed, 2 dropped) 4303 | -7/Waste | Crushed by Compactor (0 parts destroyed, 1 dropped) 4319 | -7/Waste | Spotted C-40 Crusher 4331 | -7/Waste | Lost 3 parts (1n2w) 4341 | -7/Waste | EMP discharged 4355 | -7/Waste | Spotted C-40 Crusher 4356 | -7/Waste | Discovered new exit (range 10) 4366 | -7/Waste | Entered Factory 5304 | -7/Factory | Build established: Construct 6011 | -7/Factory | Core integrity fell below 50% 6150 | -7/Factory | Lost 4 parts (1p3n) 6383 | -7/Factory | Core integrity fell below 20% 6410 | -7/Factory | Lost 3 parts (1p1n1w) 6420 | -7/Factory | Build established: Mutant 6489 | -7/Factory | Garrison activated, responded to threat 6540 | -7/Factory | Lost 4 parts (1p1n1u1w) 6566 | -7/Factory | Discovered new exit (range 15) 6581 | -7/Factory | Entered Lower Caves 6588 | -7/Lower Caves | Learned Factory stockpile data 6848 | -7/Lower Caves | Identified exit to Lower Caves 6937 | -7/Lower Caves | Destroyed by S-27 Virus with Autogun Last Messages --------------- 06770_ System corrupted: Matter fused (-10). 06785_ 9VVHVCZBT#:2TRN%TX6D %KGR 06801_ DYOPO6JXXBNLR &OF1TCNNV6J 06846_ Y&JDKIK>